{"text_format":"1","workbook":"xlsx","n_sheets":8,"sheets":["第1号様式　Ⅰ団体概要","Ⅱ事業概要 ","Ⅲ　事業収支計画書","(記入例)第1号様式　Ⅰ団体概要","(記入例)Ⅱ事業概要","(記入例)Ⅲ　事業収支計画書","Ⅱ事業概要 手書き用原本","区使用シート（入力不要）"],"not_rendered":{"charts":0,"images":0,"macros":1,"external_links":0,"defined_names":13,"comments":7,"pivot_tables":0},"unopened":[],"bounds":{"document_bytes":16777216,"sheet_cells":100000,"rows_first":2000,"rows_last":500,"rows_between":2000,"halvings":0,"cell_chars":16384,"cell_head_chars":4096},"cells_cut":0,"cells_raw":0,"read":"whole","date_system":"1900"}

{"sheet":"第1号様式　Ⅰ団体概要","index":0,"n_rows":61,"n_cols":14,"rows_kept":61,"cut":false,"hidden":false,"merged":[[2,0,2,3],[7,0,7,3],[8,0,8,3],[10,0,10,2],[11,1,11,2],[12,1,12,2],[13,1,13,2],[14,1,14,2],[15,1,15,2],[16,0,16,2],[11,0,15,0],[25,2,25,3],[26,1,26,3],[17,1,17,2],[18,1,18,2],[19,1,19,2],[20,1,20,2],[21,1,21,2],[32,1,32,2],[33,1,33,2],[34,1,34,2],[35,1,35,2],[36,1,36,2],[37,2,37,3],[38,2,38,3],[39,2,39,3],[40,2,40,3],[41,2,41,3],[42,2,42,3],[43,2,43,3],[44,2,44,3],[45,2,45,3],[46,2,46,3],[32,0,33,0],[34,0,35,0],[37,0,38,0],[39,0,46,0],[17,0,20,0],[21,0,22,0],[23,0,26,0],[28,0,29,0],[30,0,31,0],[27,0,27,2],[28,1,28,2],[29,1,29,2],[30,1,30,2],[31,1,31,2],[22,1,22,2],[24,2,24,3]]}
["第１号様式(第７条関係)",null,null,"年　　　月　　　日"]
[]
["中野区区民公益活動への政策助成申請書"]
["中　野　区　長　　　宛て"]
[null,"申請者","団体名",{"$f":"D11","v":0}]
[null,null,"代表者名",{"$f":"D14&\"　\"&D12","v":"　"}]
[]
["令和７年度区民公益活動への政策助成の交付を受けたいので、下記のとおり申請します。"]
["記"]
["Ⅰ 団体概要",null,"　"]
["１ 団体名"]
["2 代表者","1 氏名"]
[null,"2 フリガナ"]
[null,"3 代表者肩書き（法人格の場合のみ）"]
[null,"4 郵便番号"]
[null,"5 住所"]
["3 代表者と連絡担当者の兼務について",null,null,null,null,null,"兼務のため同じ（「4 連絡担当者（送付先）」入力不要）"]
["4 連絡担当者（送付先）","1 氏名",null,null,null,null,"兼務していないため異なる（違う場合は以下の「4 連絡担当者（送付先）」を入力）"]
[null,"2 フリガナ"]
[null,"3 郵便番号"]
[null,"4 住所"]
["5 連絡担当者（連絡先）","1 ＴＥＬ"]
[null,"2 Ｅ-mail"]
["6 「ためまっぷなかの」登録状況(※)","政策助成は、ためまっぷ団体登録が必須です。"]
[null,null,"登録済　　　　　（7から14は空欄）"]
[null,null,"登録していない　（7から14を入力）"]
[null,"（※）本申請書の提出・審査をもってためまっぷなかのの団体登録が完了します。ためまっぷなかのについては区ホームページを参照。"]
["7 設立年月日（年月日を入力。日がわからない場合は1日と入力）"]
["8 設立目的","1 メイン（選択）"]
[null,"2 メインの他に考えている目的(自由記述)"]
["9 会員数","1 会員総数（人）"]
[null,"2 中野区在住 会員数（人）"]
["10 会費","1 月・年・なし（選択）"]
[null,"2 金額（円）"]
["11 最寄りの区民活動センター","1 活動エリアの最寄りのセンター（選択）"]
[null,"2 よく活動するｴﾘｱ(任意。全ｾﾝﾀｰ名記述）"]
["12 団体HP等","ホームページURL・X（旧Twitter）等アカウント\n（ある場合のみ記述）"]
["13 書類提出",null,"会員の名前一覧（名簿）を提出"]
[null,null,"　代表者もしくは連絡担当者が中野区民の場合は、名簿に住所は不要。\n　代表者と連絡担当者がいずれも中野区民でない場合は、中野区民が1名以上在籍していることを確認できるよう、中野区民の住所がわかるものを提出してください。"]
["14 同意確認\n（該当項目にチェック。ためまっぷなかの利用には、全ての同意が必要）",null,"中野区ホームページで“地域団体の電子掲示板「ためまっぷなかの」の説明を確認しました。（「ためまっぷなかの」は、中野区が運営する無料の地域団体用の電子掲示板です。）"]
[null,null,"中野区ホームページでためまっぷなかの利用規約を確認しました。"]
[null,null,"中野区ホームページでためまっぷなかの掲載チラシの注意点を確認し、著作権者の権利を侵害しない等のツールを遵守したチラシを掲載することについて、同意します。"]
[null,null,"登録した団体情報は、中野区からの公益活動に関する情報提供等の告知に使用することに同意します。"]
[null,null,"ためまっぷなかの掲載チラシに関する問い合わせがあった場合は、団体の連絡用メールアドレスを送付することに同意します。"]
[null,null,"ためまっぷなかの登録情報について、中野区が実施する各種助成金等の申請時の団体確認として使用することに同意します。",null,null,null,"有","月会費",null,null,null,"南中野",null,"１．平和、人権、男女平等、多様性の尊重のための活動"]
[null,null,"ためまっぷなかの登録情報及び掲載チラシとして登録した事業に関する情報を、中野区が統計データとしての利用権限を有することに同意します。",null,null,null,"無","年会費",null,null,null,"弥生",null,"２．地域愛、人のつながり、地域づくりのための活動"]
[null,null,"営利活動、宗教、政治活動を主として行う団体ではありません。公益活動を行う団体です。",null,null,null,"南中野　区民活動センター","なし(なしの場合は金額は0と入力)",null,null,null,"鍋横",null,"３．学習、文化・芸術、国際交流、地域経済、消費者のための活動"]
[null,null,null,null,null,null,"弥生　区民活動センター",null,null,null,null,"東部",null,"４．子ども、子育て、若者のための活動"]
[null,null,null,null,null,null,"鍋横　区民活動センター",null,null,null,null,"桃園",null,"５．健康福祉のための活動"]
[null,null,null,null,null,null,"東部　区民活動センター",null,null,null,null,"昭和",null,"６．スポーツのための活動"]
[null,null,null,null,null,null,"桃園　区民活動センター",null,null,null,null,"東中野",null,"７．まちづくりのための活動"]
[null,null,null,null,null,null,"昭和　区民活動センター",null,null,null,null,"上高田",null,"８．環境、緑の保全・創出のための活動"]
[null,null,null,null,null,null,"東中野　区民活動センター",null,null,null,null,"新井",null,"９．魅力的な地域資源の発掘・発信のための活動"]
[null,null,null,null,null,null,"上高田　区民活動センター",null,null,null,null,"江古田"]
[null,null,null,null,null,null,"新井　区民活動センター",null,null,null,null,"沼袋"]
[null,null,null,null,null,null,"江古田　区民活動センター",null,null,null,null,"野方"]
[null,null,null,null,null,null,"沼袋　区民活動センター",null,null,null,null,"大和"]
[null,null,null,null,null,null,"野方　区民活動センター",null,null,null,null,"鷺宮"]
[null,null,null,null,null,null,"大和　区民活動センター",null,null,null,null,"上鷺宮"]
[null,null,null,null,null,null,"鷺宮　区民活動センター"]
[null,null,null,null,null,null,"上鷺宮　区民活動センター"]

{"sheet":"Ⅱ事業概要 ","index":1,"n_rows":184,"n_cols":7,"rows_kept":184,"cut":false,"hidden":false,"merged":[[0,1,0,3],[55,0,55,3],[25,0,29,0],[30,0,34,0],[53,0,54,0],[70,0,73,0],[74,0,76,0],[3,0,17,0],[40,0,52,0],[63,0,69,0]]}
["Ⅱ 事業概要"]
["1 事業名（自由記述）"]
["2 領域・合致する政策（選択）"]
["3 事業形態\n（複数選択可）",null,"シンポジウム"]
[null,null,"交流会・ひろば・サロン"]
[null,null,"まつり\n・フェス"]
[null,null,"講演・コンサート"]
[null,null,"周知・普及啓発"]
[null,null,"保全・整備"]
[null,null,"講義･講習会･学習会"]
[null,null,"コンテスト"]
[null,null,"国際交流"]
[null,null,"体験・街歩き"]
[null,null,"催事・バザー"]
[null,null,"防災関連"]
[null,null,"健康増進・スポーツ"]
[null,null,"その他（下段に記述）"]
[]
["4 対象（誰に対して）\n※自由記述"]
["5 目的（何のために）\n※自由記述"]
["6 事業内容（何をする）\n※自由記述"]
["7 実施会場名（全て入力）\n※自由記述"]
["8 準備開始日(年月日)"]
["9 実施予定日(月日)"]
["10 最終実施予定日(月日)"]
["11 開催回数（選択）",null,"1回"]
[null,null,"2回～11回"]
[null,null,"12回～24回"]
[null,null,"25回以上（下段に回数を記述）"]
[null,null,null,"回"]
["12 事業の目標参加者数(延べ人数を選択)",null,"30人未満"]
[null,null,"30～50人未満"]
[null,null,"50～100人未満"]
[null,null,"100人～1000人未満"]
[null,null,"1000人以上"]
["13 この事業に関わる\n　 会員スタッフ(人)",null,null,"名"]
["14 会員外ボランティア",null,null,"名"]
["15 会員外講師等専門家",null,null,"名"]
["16 過去のこの事業の開催回数(初は０と入力)　　　　　　　　",null,null,"回"]
["17 この事業の開始年月日(初は2025年4月1日と入力)"]
["18 PR方法等\n（複数選択可）","■","ためまっぷなかの（必須）"]
[null,null,"X(旧Twitter）"]
[null,null,"Facebook"]
[null,null,"Instagram"]
[null,null,"LINE"]
[null,null,"YouTube配信"]
[null,null,"TikTok"]
[null,null,"チラシ区有施設へのチラシ設置"]
[null,null,"掲示板へのチラシ掲示"]
[null,null,"手配り"]
[null,null,"郵送"]
[null,null,"その他（下段に入力）"]
[]
["19 地域団体連携（選択）",null,"広報,場所,ﾎﾞﾗﾝﾃｨｱ,資金,物資提供で連携して「いない」"]
[null,null,"広報,場所,ﾎﾞﾗﾝﾃｨｱ,資金,物資提供で連携して「いる」"]
["　※連携している場合のみ20～22に記述。連携団体が2種類ある場合は23～25に記述。\n　　3種類以上ある場合は、26 その他に、連携団体種別・団体名・連携内容を全て記述。"]
["20 連携団体種別(選択)"]
["21 連携団体、地区名（全て入力。自由記述）"]
["22 連携内容（選択）"]
["23 連携団体種別(選択)"]
["24 連携団体、地区名（全て入力。自由記述）"]
["25 連携内容（選択）"]
["26 その他（右欄に団体名、連携内容を自由記述）"]
["27 ユニバーサルデザインへの配慮（あてはまるものすべてにチェック）",null,"①事業計画において、多様な生き方、個性や価値観に配慮している。"]
[null,null,"②対象となる方が参加しやすい時期、曜日、時間帯に設定している。"]
[null,null,"③文字の大きさや配色に留意した広報物を作成する。"]
[null,null,"④配慮が必要な人の事前の把握や、事業当日でも柔軟な対応ができるなど必要な体制ができている。"]
[null,null,"⑤会場内外の案内は分かりやすく、安全でスムーズな導線が確保できる。"]
[null,null,"⑥その他（下段に具体的に、全ての配慮を記述）"]
[]
["28 この事業での他の助成金の申請について",null,"この事業では、政策助成の申請のみ（他の助成金は無し）"]
[null,null,"この事業で、国(独立行政法人含む)、都、区、社会福祉協議会等の助成金利用する（注意:この場合は政策助成の申請ができません。他の事業で利用していても申請できます)"]
[null,null,"この事業で民間の助成金を申請する（助成金名を下段に記述）"]
[]
["29 団体で、この申請事業以外に、本年度区に助成金申請を行う、又は今後申請予定事業の有無",null,"他に申請する事業なし(この事業のみ助成金を申請)"]
[null,null,"他の事業で申請あり(助成金名と申請事業名を下段に記述)"]
[]
[]
[]
[]
[]
[]
[]
[]
[]
[]
[]
[]
[]
[]
[null,null,null,null,null,null,"町会・自治会"]
[null,null,null,null,null,null,"区民活動センター運営委員会"]
[null,null,null,null,null,null,"民生児童委員"]
[null,null,null,null,null,null,"青少年育成地区委員会"]
[null,null,null,null,null,null,"老人クラブ"]
[]
[null,null,null,null,null,null,"1.広報"]
[null,null,null,null,null,null,"2.場所"]
[null,null,null,null,null,null,"3.ボランティア"]
[null,null,null,null,null,null,"4.資金"]
[null,null,null,null,null,null,"5.物資提供"]
[null,null,null,null,null,null,"6.広報、場所"]
[null,null,null,null,null,null,"7.広報、ボランティア"]
[null,null,null,null,null,null,"8.広報、資金"]
[null,null,null,null,null,null,"9.広報、物資提供"]
[null,null,null,null,null,null,"10. 場所、ボランティア"]
[null,null,null,null,null,null,"11. 場所、資金"]
[null,null,null,null,null,null,"12. 場所、物資提供"]
[null,null,null,null,null,null,"13. ボランティア、資金"]
[null,null,null,null,null,null,"14. ボランティア、物資提供"]
[null,null,null,null,null,null,"15. 資金、物資提供"]
[null,null,null,null,null,null,"16. 広報、場所、ボランティア"]
[null,null,null,null,null,null,"17. 広報、場所、資金"]
[null,null,null,null,null,null,"18. 広報、場所、物資提供"]
[null,null,null,null,null,null,"19. 広報、ボランティア、資金"]
[null,null,null,null,null,null,"20. 広報、ボランティア、物資提供"]
[null,null,null,null,null,null,"21. 広報、資金、物資提供"]
[null,null,null,null,null,null,"22. 場所、ボランティア、資金"]
[null,null,null,null,null,null,"23. 場所、ボランティア、物資提供"]
[null,null,null,null,null,null,"24. 場所、資金、物資提供"]
[null,null,null,null,null,null,"25. ボランティア、資金、物資提供"]
[null,null,null,null,null,null,"26. 広報、場所、ボランティア、資金"]
[null,null,null,null,null,null,"27. 広報、場所、ボランティア、物資、提供"]
[null,null,null,null,null,null,"28. 広報、場所、資金、物資提供"]
[null,null,null,null,null,null,"29. 広報、ボランティア、資金、物資提供"]
[null,null,null,null,null,null,"30. 場所、ボランティア、資金、物資提供"]
[null,null,null,null,null,null,"31. 広報、場所、ボランティア、資金、物資提供"]
[]
[null,null,null,null,null,"領域１","領域１①人権意識の啓発につながる取組"]
[null,null,null,null,null,null,"領域１②性別、性自認・性的指向、国籍・文化等の多様性を認め合う気運の醸成につながる取組"]
[null,null,null,null,null,null,"領域１③男女共同参画社会の実現につながる取組"]
[null,null,null,null,null,null,"領域１④ユニバーサルデザインの普及啓発・施策改善につながる取組"]
[null,null,null,null,null,null,"領域１⑤平和意識の啓発につながる取組"]
[null,null,null,null,null,"領域２","領域２①地域における人のつながりと愛着が生まれる環境づくりにつながる取組"]
[null,null,null,null,null,null,"領域２②地域コミュニティを支える人材・団体の支援の充実、地域の自主的な活動の推進と環境づくりにつながる取組"]
[null,null,null,null,null,null,"領域２③高齢者の地域の見守り・支えあいの推進、高齢者の相談支援につながる取組"]
[null,null,null,null,null,null,"領域２④高齢者を支える医療や介護・生活支援サービス等の提供体制の充実につながる取組"]
[null,null,null,null,null,null,"領域２⑤多様な交流・つながりを育み、いつまでも活躍できる環境づくりにつながる取組"]
[null,null,null,null,null,null,"領域２⑥区民が主体的に取り組む介護予防の推進につながる取組"]
[null,null,null,null,null,null,"領域２⑦権利擁護や虐待の防止の推進、再犯防止や立ち直りの支援など、多様な課題を抱えている人の支援など、誰一人取り残されることのない支援につながる取組"]
[null,null,null,null,null,null,"領域２⑧認知症のある人とその家族を支える環境づくりにつながる取組"]
[null,null,null,null,null,null,"領域２⑨地域における災害に強いまちづくりの推進、犯罪や事件の防止につながる取組"]
[null,null,null,null,null,"領域３","領域３①多文化共生のまちづくりの推進につながる取組"]
[null,null,null,null,null,null,"領域３②誰もが身近に気軽に親しめる文化芸術の環境づくりにつながる取組"]
[null,null,null,null,null,null,"領域３③歴史・伝統文化の保存・継承・活用につながる取組\""]
[null,null,null,null,null,null,"領域３④生涯にわたり学び続けることができる環境づくりにつながる取組"]
[null,null,null,null,null,null,"領域３⑤持続可能な地域経済の成長・活性化と働き続けられる環境づくりにつながる取組"]
[null,null,null,null,null,null,"領域３⑥商店街の活性化支援によるにぎわい空間の創出につながる取組"]
[null,null,null,null,null,null,"領域３⑦消費生活の相談や普及啓発など、消費生活の安全・安心の推進につながる取組"]
[null,null,null,null,null,"領域４","領域４①子どもの権利擁護の推進、子どもの権利に係る相談、子どもが意見を表明する機会の提供など、子どもの権利の尊重と理解促進につながる取組"]
[null,null,null,null,null,null,"領域４②子どもの貧困対策や生活環境の改善、困難を抱える子どもの学習の機会の確保、子どもの経験・体験の機会の確保などにつながる取組"]
[null,null,null,null,null,null,"領域４③特色ある学校づくりと家庭・地域との協働による学校運営の推進につながる取組"]
[null,null,null,null,null,null,"領域４④地域における子育て支援活動の促進につながる活動"]
[null,null,null,null,null,null,"領域４⑤若者が地域や社会で活躍できる環境づくりにつながる活動"]
[null,null,null,null,null,"領域５","領域５①自殺の未然防止、犯罪被害者等を支える地域づくりなど、多様な課題を抱えている人やその家族の早期発見・早期対応の推進につながる取組"]
[null,null,null,null,null,null,"領域５②障害者への相談支援体制と地域生活移行を支える環境の整備につながる取組"]
[null,null,null,null,null,null,"領域５③生活に困窮している人の自立に向けた支援の充実につながる取組"]
[null,null,null,null,null,null,"領域５④障害者の就労や社会参画の推進につながる取組"]
[null,null,null,null,null,null,"領域５⑤健康的な生活習慣が身につく環境づくりにつながる取組"]
[null,null,null,null,null,null,"領域５⑥感染症予防に向けた意識の啓発、食の安全・安心の確保、動物との共生など、安全・安心な生活環境の確保につながる取組"]
[null,null,null,null,null,"領域６","領域６①誰もが生涯を通じて身近に運動・スポーツに取組む環境づくりにつながる取組"]
[null,null,null,null,null,null,"領域６②スポーツを通じたコミュニティの形成につながる取組"]
[null,null,null,null,null,null,"領域６③子どもの競技体験の機会の提供など、運動習慣の定着につながる取組"]
[null,null,null,null,null,null,"領域６④区内の各種スポーツ団体等の支援につながる取組"]
[null,null,null,null,null,"領域７","領域７①各地区の特性に応じたまちづくりの推進につながる取組"]
[null,null,null,null,null,null,"領域７②災害に強い、防災まちづくりの推進につながる取組"]
[null,null,null,null,null,null,"領域７③耐震化の推進につながる取組"]
[null,null,null,null,null,null,"領域７④住宅ストックの質の向上、適切な維持管理及び有効活用の推進につながる取組"]
[null,null,null,null,null,null,"領域７⑤まちなかの安全性・快適性の向上につながる取組"]
[null,null,null,null,null,null,"領域７⑥道路・橋梁の着実な整備・改修につながる取組"]
[null,null,null,null,null,null,"領域７⑦多様なニーズに応じた魅力ある公園の整備につながる取組"]
[null,null,null,null,null,null,"領域７⑧誰もが利用しやすく、円滑に移動できる交通環境の整備につながる取組"]
[null,null,null,null,null,"領域８","領域８①質の高いみどりの確保・創出、緑化の推進にむけた意識啓発、保護指定樹林等の所有者への支援などみどりの保全と創出の推進につながる取組"]
[null,null,null,null,null,null,"領域８②脱炭素社会の推進と気候変動への適応につながる取組"]
[null,null,null,null,null,null,"領域８③環境活動に関する連携・協働に向けたネットワークづくりにつながる取組"]
[null,null,null,null,null,null,"領域８④ごみの減量やリサイクルの推進につながる取組"]
[null,null,null,null,null,null,"領域８⑤食品ロス削減につながる取組"]
[null,null,null,null,null,null,"領域８⑥生活環境の維持のための対策など、安全・安心な生活環境の確保につながる取組"]
[null,null,null,null,null,"領域９","領域９① 地域資源を掘り起こし、気軽に楽しめるまちを区民や来街者に提案する取組"]
[null,null,null,null,null,null,"領域９② 「リラックス」「食・グルメ」「出会い・交流」など、体験を提供することでリピーターを獲得することに着目した取組"]
[null,null,null,null,null,null,"領域９③ デジタルツールの活用など、中野の魅力の拡散に向けて、高い情報発信力を伴う取組"]
[]
[]
[null,null,null,null,null,null,"○"]

{"sheet":"Ⅲ　事業収支計画書","index":2,"n_rows":68,"n_cols":14,"rows_kept":68,"cut":false,"hidden":false,"merged":[[1,0,1,2],[1,3,1,7],[2,0,2,1],[2,3,2,5],[2,6,2,7],[3,0,3,1],[3,3,3,5],[3,6,3,7],[4,0,4,1],[4,4,4,5],[4,6,4,7],[5,0,5,1],[5,4,5,5],[5,6,5,7],[6,0,6,1],[6,4,6,5],[6,6,6,7],[7,4,7,5],[7,6,7,7],[8,4,8,5],[8,6,8,7],[9,4,9,5],[9,6,9,7],[10,4,10,5],[10,6,10,7],[11,4,11,5],[11,6,11,7],[12,0,12,1],[12,3,12,5],[12,6,12,7],[13,1,13,2],[13,3,13,7],[17,2,17,3],[18,2,18,3],[19,2,19,3],[20,2,20,3],[21,2,21,3],[22,2,22,3],[26,2,26,3],[27,2,27,3],[28,2,28,3],[29,2,29,3],[30,2,30,3],[31,2,31,3],[32,2,32,3],[33,2,33,3],[34,2,34,3],[35,2,35,3],[36,2,36,3],[37,2,37,3],[38,2,38,3],[39,2,39,3],[40,2,40,3],[41,2,41,3],[42,2,42,3],[43,2,43,3],[44,2,44,3],[45,2,45,3],[46,2,46,3],[47,2,47,3],[57,2,57,3],[48,2,48,3],[49,2,49,3],[50,2,50,3],[51,2,51,3],[52,2,52,3],[63,2,63,3],[64,2,64,3],[65,2,65,3],[66,2,66,3],[7,0,11,1],[7,2,10,2],[4,3,11,3],[58,2,58,3],[59,2,59,3],[60,2,60,3],[61,2,61,3],[62,2,62,3],[53,2,53,3],[54,2,54,3],[55,2,55,3],[56,2,56,3]]}
["Ⅲ　事業収支計画"]
["収入（申請金額手入力。他自動計算）",null,null,"支出（自動計算）"]
["項目",null,"金額（円）","項目",null,null,"金額（円）"]
["a.参加費",null,{"$f":"SUMIF($B$19:$B$23,A4,$H$19:$H$23)","v":0},"※助成対象外経費",null,null,{"$f":"SUMIF($B$28:$B$67,D4,$H$28:$H$67)","v":0},null,null,null,null,null,"※助成対象外経費"]
["b.協賛金･寄付",null,{"$f":"SUMIF($B$19:$B$23,A5,$H$19:$H$23)","v":0},"助成対象経費","①謝礼金（会員外）",null,{"$f":"SUMIF($B$28:$B$67,E5,$H$28:$H$67)","v":0},null,null,null,null,null,"①謝礼金（会員外）"]
["c.運営資金",null,{"$f":"SUMIF($B$19:$B$23,A6,$H$19:$H$23)","v":0},null,"②活動手当（会員）",null,0,null,null,null,null,null,"②活動手当（会員）","←NEW"]
["d.民間助成金",null,{"$f":"SUMIF($B$19:$B$23,A7,$H$19:$H$23)","v":0},null,"③施設使用料",null,0,null,null,null,null,null,"③施設使用料"]
["申請助成金額\n\n助成対象経費合計×2/3以内、かつ上限20万円、100円未満切捨）",null,"申請金額入力↓",null,"④保険料",null,0,null,null,null,null,null,"④保険料"]
[null,null,null,null,"⑤印刷・製本費",null,0,null,null,null,null,null,"⑤印刷・製本費"]
[null,null,null,null,"⑥消耗品費",null,0,null,null,null,null,null,"⑥消耗品費"]
[null,null,null,null,"⑦その他経費",null,0,null,null,null,null,null,"⑦その他経費"]
[null,null,null,null,"助成対象経費 合計",null,{"$f":"SUM(G5:G11)","v":0}]
["収入合計",null,{"$f":"SUM(C4:C12)","v":0},"支出合計",null,null,{"$f":"G4+G12","v":0}]
["参考",{"$f":"IF(ROUNDDOWN(G12*2/3,0)<=200000,ROUNDDOWN(G12*2/3,-2),200000)","v":0},null,"　　←助成金額の上限金額\n円　　（助成対象経費①＋②＋③＋④＋⑤＋⑥＋⑦×2/3、\n　　　　　上限20万円、100円未満切捨）",null,null,null,null,null,null,null,null,"a.参加費"]
[null,null,null,null,null,null,null,null,null,null,null,null,"b.協賛金･寄付"]
["＜収入内訳＞",null,"項目を選択、内容、数量、単位、単価を入力してください。",null,null,null,null,null,null,null,null,null,"c.運営資金"]
[null,null,"a～dの項目が該当するかは、手引きでご確認ください。",null,null,null,null,null,null,null,null,null,"d.民間助成金"]
["No．","項目（必ず選択）","内容",null,"数量","単位","単価","金額(円)",null,"　　"]
[1,null,null,null,null,null,null,{"$f":"E19*G19","v":0},null,"　　　"]
[2,null,null,null,null,null,null,{"$f":"E20*G20","v":0}]
[3,null,null,null,null,null,null,{"$f":"E21*G21","v":0}]
[4,null,null,null,null,null,null,{"$f":"E22*G22","v":0}]
[5,null,null,null,null,null,null,{"$f":"E23*G23","v":0}]
[null,null,null,null,null,null,"合計",{"$f":"SUM(H19:H23)","v":0}]
["＜支出内訳＞",null,"項目を選択、内容、数量、単位、単価を入力してください。"]
[null,null,"①～⑦の項目が該当するかは、手引きでご確認ください。"]
["No．","項目（必ず選択）","内容",null,"数量","単位","単価","金額"]
[1,null,null,null,null,null,null,{"$f":"E28*G28","v":0}]
[2,null,null,null,null,null,null,0]
[3,null,null,null,null,null,null,0]
[4,null,null,null,null,null,null,0]
[5,null,null,null,null,null,null,0]
[6,null,null,null,null,null,null,0]
[7,null,null,null,null,null,null,0]
[8,null,null,null,null,null,null,0]
[9,null,null,null,null,null,null,0]
[10,null,null,null,null,null,null,0]
[11,null,null,null,null,null,null,0]
[12,null,null,null,null,null,null,0]
[13,null,null,null,null,null,null,0]
[14,null,null,null,null,null,null,0]
[15,null,null,null,null,null,null,0]
[16,null,null,null,null,null,null,0]
[17,null,null,null,null,null,null,0]
[18,null,null,null,null,null,null,0]
[19,null,null,null,null,null,null,0]
[20,null,null,null,null,null,null,0]
[21,null,null,null,null,null,null,0]
[22,null,null,null,null,null,null,0]
[23,null,null,null,null,null,null,0]
[24,null,null,null,null,null,null,0]
[25,null,null,null,null,null,null,0]
[26,null,null,null,null,null,null,0]
[27,null,null,null,null,null,null,0]
[28,null,null,null,null,null,null,0]
[29,null,null,null,null,null,null,0]
[30,null,null,null,null,null,null,0]
[31,null,null,null,null,null,null,0]
[32,null,null,null,null,null,null,0]
[33,null,null,null,null,null,null,0]
[34,null,null,null,null,null,null,0]
[35,null,null,null,null,null,null,0]
[36,null,null,null,null,null,null,0]
[37,null,null,null,null,null,null,0]
[38,null,null,null,null,null,null,0]
[39,null,null,null,null,null,null,0]
[40,null,null,null,null,null,null,0]
[null,null,null,null,null,null,"合計",{"$f":"SUM(H28:H67)","v":0}]

{"sheet":"(記入例)第1号様式　Ⅰ団体概要","index":3,"n_rows":61,"n_cols":14,"rows_kept":61,"cut":false,"hidden":false,"merged":[[44,2,44,3],[45,2,45,3],[46,2,46,3],[36,1,36,2],[37,0,38,0],[37,2,37,3],[38,2,38,3],[39,0,46,0],[39,2,39,3],[40,2,40,3],[41,2,41,3],[42,2,42,3],[43,2,43,3],[32,0,33,0],[32,1,32,2],[33,1,33,2],[34,0,35,0],[34,1,34,2],[35,1,35,2],[30,0,31,0],[30,1,30,2],[31,1,31,2],[21,0,22,0],[21,1,21,2],[22,1,22,2],[23,0,26,0],[24,2,24,3],[25,2,25,3],[26,1,26,3],[27,0,27,2],[28,0,29,0],[28,1,28,2],[29,1,29,2],[16,0,16,2],[17,0,20,0],[17,1,17,2],[18,1,18,2],[19,1,19,2],[20,1,20,2],[2,0,2,3],[7,0,7,3],[8,0,8,3],[10,0,10,2],[11,0,15,0],[11,1,11,2],[12,1,12,2],[13,1,13,2],[14,1,14,2],[15,1,15,2]]}
["第１号様式(第７条関係)",null,null,"年　　　月　　　日"]
[]
["中野区区民公益活動への政策助成申請書"]
["中　野　区　長　　　宛て"]
[null,"申請者","団体名",{"$f":"D11","v":"○×実行委員会"}]
[null,null,"代表者名",{"$f":"D14&\"　\"&D12","v":"　野方太郎"}]
[]
["令和６年度区民公益活動への政策助成の交付を受けたいので、下記のとおり申請します。"]
["記"]
["Ⅰ 団体概要",null,"　"]
["１ 団体名",null,null,"○×実行委員会"]
["2 代表者","1 氏名",null,"野方太郎"]
[null,"2 フリガナ",null,"ノガタタロウ"]
[null,"3 代表者肩書き（法人格の場合のみ）"]
[null,"4 郵便番号",null,"164-0001"]
[null,"5 住所",null,"中野区中野４－８－１"]
["3 代表者と連絡担当者の兼務について",null,null,"兼務していないため異なる（違う場合は以下の「4 連絡担当者（送付先）」を入力）",null,null,"兼務のため同じ（「4 連絡担当者（送付先）」入力不要）"]
["4 連絡担当者（送付先）","1 氏名",null,"鷺宮花子",null,null,"兼務していないため異なる（違う場合は以下の「4 連絡担当者（送付先）」を入力）"]
[null,"2 フリガナ",null,"サギノミヤハナコ"]
[null,"3 郵便番号",null,"164-0001"]
[null,"4 住所",null,"中野区中野〇－△－１ナカノビル５０９"]
["5 連絡担当者（連絡先）","1 ＴＥＬ",null,"03-3389-1111"]
[null,"2 Ｅ-mail",null,"koeki@city.tokyo-nakano.lg.jp"]
["6 「ためまっぷなかの」登録状況(※)","政策助成は、ためまっぷ団体登録が必須です。"]
[null,null,"登録済　　　　　（7を入力。8から15は空欄）"]
[null,"○","登録していない　（7は空欄。8から15を入力）"]
[null,"（※）本申請書の提出・審査をもってためまっぷなかのの団体登録が完了します。ためまっぷなかのについては区ホームページを参照。"]
["7 設立年月日（年月日を入力。日がわからない場合は1日と入力）",null,null,"2010-04-01"]
["8 設立目的","1 メイン（選択）",null,"２．地域愛、人のつながり、地域づくりのための活動"]
[null,"2 メインの他に考えている目的(自由記述)"]
["9 会員数","1 会員総数（人）",null,30]
[null,"2 中野区在住 会員数（人）",null,25]
["10 会費","1 月・年・なし（選択）",null,"年会費"]
[null,"2 金額（円）",null,"3,000円"]
["11 最寄りの区民活動センター","1 活動エリアの最寄りのセンター（選択）",null,"新井 区民活動センター"]
[null,"2 よく活動するｴﾘｱ(任意。全ｾﾝﾀｰ名記述）",null,"桃園"]
["12 団体HP等","ホームページURL・X（旧Twitter）等アカウント\n（ある場合のみ記述）",null,"http://www.city.tokyo-nakano.lg.jp/\nTwitterアカウント名＠tokyo_nakano"]
["13 書類提出",null,"会員の名前一覧（名簿）を提出"]
[null,null,"　代表者もしくは連絡担当者が中野区民の場合は、名簿に住所は不要。\n　代表者と連絡担当者がいずれも中野区民でない場合は、中野区民が1名以上在籍していることを確認できるよう、中野区民の住所がわかるものを提出してください。"]
["14 同意確認\n（該当項目にチェック。ためまっぷなかの利用には、全ての同意が必要）",null,"中野区ホームページで“地域団体の電子掲示板「ためまっぷなかの」の説明を確認しました。（「ためまっぷなかの」は、中野区が運営する無料の地域団体用の電子掲示板です。）"]
[null,null,"中野区ホームページでためまっぷなかの利用規約を確認しました。"]
[null,null,"中野区ホームページでためまっぷなかの掲載チラシの注意点を確認し、著作権者の権利を侵害しない等のツールを遵守したチラシを掲載することについて、同意します。"]
[null,null,"登録した団体情報は、中野区からの公益活動に関する情報提供等の告知に使用することに同意します。"]
[null,null,"ためまっぷなかの掲載チラシに関する問い合わせがあった場合は、団体の連絡用メールアドレスを送付することに同意します。"]
[null,null,"ためまっぷなかの登録情報について、中野区が実施する各種助成金等の申請時の団体確認として使用することに同意します。",null,null,null,"有","月会費",null,null,null,"南中野",null,"１．平和、人権、男女平等、多様性の尊重のための活動"]
[null,null,"ためまっぷなかの登録情報及び掲載チラシとして登録した事業に関する情報を、中野区が統計データとしての利用権限を有することに同意します。",null,null,null,"無","年会費",null,null,null,"弥生",null,"２．地域愛、人のつながり、地域づくりのための活動"]
[null,null,"営利活動、宗教、政治活動を主として行う団体ではありません。公益活動を行う団体です。",null,null,null,"南中野　区民活動センター","なし(なしの場合は金額は0と入力)",null,null,null,"鍋横",null,"３．学習、文化・芸術、国際交流、地域経済、消費者のための活動"]
[null,null,null,null,null,null,"弥生　区民活動センター",null,null,null,null,"東部",null,"４．子ども、子育て、若者のための活動"]
[null,null,null,null,null,null,"鍋横　区民活動センター",null,null,null,null,"桃園",null,"５．健康福祉のための活動"]
[null,null,null,null,null,null,"東部　区民活動センター",null,null,null,null,"昭和",null,"６．スポーツのための活動"]
[null,null,null,null,null,null,"桃園　区民活動センター",null,null,null,null,"東中野",null,"７．まちづくりのための活動"]
[null,null,null,null,null,null,"昭和　区民活動センター",null,null,null,null,"上高田",null,"８．環境、緑の保全・創出のための活動"]
[null,null,null,null,null,null,"東中野　区民活動センター",null,null,null,null,"新井",null,"９．魅力的な地域資源の発掘・発信のための活動"]
[null,null,null,null,null,null,"上高田　区民活動センター",null,null,null,null,"江古田"]
[null,null,null,null,null,null,"新井　区民活動センター",null,null,null,null,"沼袋"]
[null,null,null,null,null,null,"江古田　区民活動センター",null,null,null,null,"野方"]
[null,null,null,null,null,null,"沼袋　区民活動センター",null,null,null,null,"大和"]
[null,null,null,null,null,null,"野方　区民活動センター",null,null,null,null,"鷺宮"]
[null,null,null,null,null,null,"大和　区民活動センター",null,null,null,null,"上鷺宮"]
[null,null,null,null,null,null,"鷺宮　区民活動センター"]
[null,null,null,null,null,null,"上鷺宮　区民活動センター"]

{"sheet":"(記入例)Ⅱ事業概要","index":4,"n_rows":188,"n_cols":7,"rows_kept":188,"cut":false,"hidden":false,"merged":[[55,0,55,3],[63,0,69,0],[70,0,73,0],[74,0,76,0],[0,1,0,3],[3,0,17,0],[25,0,29,0],[30,0,34,0],[40,0,52,0],[53,0,54,0]]}
["Ⅱ 事業概要"]
["1 事業名（自由記述）",null,"地域健康体操事業"]
["2 領域・合致する政策（選択）",null,"領域２①地域における人のつながりと愛着が生まれる環境づくりにつながる取組"]
["3 事業形態\n（複数選択可）",null,"シンポジウム"]
[null,"○","交流会・ひろば・サロン"]
[null,null,"まつり\n・フェス"]
[null,null,"講演・コンサート"]
[null,null,"周知・普及啓発"]
[null,null,"保全・整備"]
[null,"○","講義･講習会･学習会"]
[null,null,"コンテスト"]
[null,null,"国際交流"]
[null,null,"体験・街歩き"]
[null,null,"催事・バザー"]
[null,null,"防災関連"]
[null,"○","健康増進・スポーツ"]
[null,null,"その他（下段に記述）"]
[]
["4 対象（誰に対して）\n※自由記述",null,"子ども、若者、高齢者など多世代"]
["5 目的（何のために）\n※自由記述",null,"ロコモティブシンドローム予防の促進のため。誰でも参加できる運動で参加者同士の世代間交流を図るため。"]
["6 事業内容（何をする）\n※自由記述",null,"①医師による介護予防や認知症予防に関する講演②自宅でできる体操③医師や栄養士への相談会"]
["7 実施会場名（全て入力）\n※自由記述",null,"〇〇区民活動センター"]
["8 準備開始日(年月日)",null,"202〇年3月1日"]
["9 実施予定日(月日)",null,"202〇年8月1日"]
["10 最終実施予定日(月日)",null,"202〇年10月30日"]
["11 開催回数（選択）",null,"1回"]
[null,"○","2回～11回"]
[null,null,"12回～24回"]
[null,null,"25回以上（下段に回数を記述）"]
[null,null,null,"回"]
["12 事業の目標参加者数(延べ人数を選択)",null,"30人未満"]
[null,null,"30～50人未満"]
[null,"○","50～100人未満"]
[null,null,"100人～1000人未満"]
[null,null,"1000人以上"]
["13 この事業に関わる\n　 会員スタッフ(人)",null,10,"名"]
["14 会員外ボランティア",null,5,"名"]
["15 会員外講師等専門家",null,2,"名"]
["16 過去のこの事業の開催回数(初は０と入力)　　　　　　　　",null,10,"回"]
["17 この事業の開始年月日(初は2024年4月1日と入力)",null,"2010年8月1日"]
["18 PR方法等\n（複数選択可）","■","ためまっぷなかの（必須）"]
[null,null,"X(旧Twitter）"]
[null,null,"Facebook"]
[null,null,"Instagram"]
[null,null,"LINE"]
[null,null,"YouTube配信"]
[null,null,"TikTok"]
[null,null,"チラシ区有施設へのチラシ設置"]
[null,null,"掲示板へのチラシ掲示"]
[null,null,"手配り"]
[null,null,"郵送"]
[null,null,"その他（下段に入力）"]
[]
["19 地域団体連携（選択）",null,"広報,場所,ﾎﾞﾗﾝﾃｨｱ,資金,物資提供で連携して「いない」"]
[null,"○","広報,場所,ﾎﾞﾗﾝﾃｨｱ,資金,物資提供で連携して「いる」"]
["　※連携している場合のみ20～22に記述。連携団体が2種類ある場合は23～25に記述。\n　　3種類以上ある場合は、26 その他に、連携団体種別・団体名・連携内容を全て記述。"]
["20 連携団体種別(選択)",null,"区民活動センター運営委員会"]
["21 連携団体、地区名（全て入力。自由記述）",null,"新井"]
["22 連携内容（選択）",null,"16. 広報、場所、ボランティア"]
["23 連携団体種別(選択)"]
["24 連携団体、地区名（全て入力。自由記述）"]
["25 連携内容（選択）"]
["26 その他（右欄に団体名、連携内容を自由記述）",null,"NPO法人健康〇〇と広報で連携"]
["27 ユニバーサルデザインへの配慮（あてはまるものすべてにチェック）",null,"①事業計画において、多様な生き方、個性や価値観に配慮している。"]
[null,null,"②対象となる方が参加しやすい時期、曜日、時間帯に設定している。"]
[null,null,"③文字の大きさや配色に留意した広報物を作成する。"]
[null,null,"④配慮が必要な人の事前の把握や、事業当日でも柔軟な対応ができるなど必要な体制ができている。"]
[null,null,"⑤会場内外の案内は分かりやすく、安全でスムーズな導線が確保できる。"]
[null,null,"⑥その他（下段に具体的に、全ての配慮を記述）"]
[]
["28 この事業での他の助成金の申請について","○","この事業では、政策助成の申請のみ（他の助成金は無し）"]
[null,null,"この事業で、国(独立行政法人含む)、都、区、社会福祉協議会等の助成金利用する（注意:この場合は政策助成の申請ができません。他の事業で利用していても申請できます)"]
[null,null,"この事業で民間の助成金を申請する（助成金名を下段に記述）"]
[]
["29 団体で、この申請事業以外に、本年度区に助成金申請を行う、又は今後申請予定事業の有無",null,"他に申請する事業なし(この事業のみ助成金を申請)"]
[null,"○","他の事業で申請あり(助成金名と申請事業名を下段に記述)"]
[null,null,"政策助成　健康フェア"]
[]
[]
[]
[]
[]
[]
[]
[]
[]
[]
[]
[]
[]
[null,null,null,null,null,null,"町会・自治会"]
[null,null,null,null,null,null,"区民活動センター運営委員会"]
[null,null,null,null,null,null,"民生児童委員"]
[null,null,null,null,null,null,"青少年育成地区委員会"]
[null,null,null,null,null,null,"老人クラブ"]
[]
[null,null,null,null,null,null,"1.広報"]
[null,null,null,null,null,null,"2.場所"]
[null,null,null,null,null,null,"3.ボランティア"]
[null,null,null,null,null,null,"4.資金"]
[null,null,null,null,null,null,"5.物資提供"]
[null,null,null,null,null,null,"6.広報、場所"]
[null,null,null,null,null,null,"7.広報、ボランティア"]
[null,null,null,null,null,null,"8.広報、資金"]
[null,null,null,null,null,null,"9.広報、物資提供"]
[null,null,null,null,null,null,"10. 場所、ボランティア"]
[null,null,null,null,null,null,"11. 場所、資金"]
[null,null,null,null,null,null,"12. 場所、物資提供"]
[null,null,null,null,null,null,"13. ボランティア、資金"]
[null,null,null,null,null,null,"14. ボランティア、物資提供"]
[null,null,null,null,null,null,"15. 資金、物資提供"]
[null,null,null,null,null,null,"16. 広報、場所、ボランティア"]
[null,null,null,null,null,null,"17. 広報、場所、資金"]
[null,null,null,null,null,null,"18. 広報、場所、物資提供"]
[null,null,null,null,null,null,"19. 広報、ボランティア、資金"]
[null,null,null,null,null,null,"20. 広報、ボランティア、物資提供"]
[null,null,null,null,null,null,"21. 広報、資金、物資提供"]
[null,null,null,null,null,null,"22. 場所、ボランティア、資金"]
[null,null,null,null,null,null,"23. 場所、ボランティア、物資提供"]
[null,null,null,null,null,null,"24. 場所、資金、物資提供"]
[null,null,null,null,null,null,"25. ボランティア、資金、物資提供"]
[null,null,null,null,null,null,"26. 広報、場所、ボランティア、資金"]
[null,null,null,null,null,null,"27. 広報、場所、ボランティア、物資、提供"]
[null,null,null,null,null,null,"28. 広報、場所、資金、物資提供"]
[null,null,null,null,null,null,"29. 広報、ボランティア、資金、物資提供"]
[null,null,null,null,null,null,"30. 場所、ボランティア、資金、物資提供"]
[null,null,null,null,null,null,"31. 広報、場所、ボランティア、資金、物資提供"]
[]
[null,null,null,null,null,"領域１","領域１①人権意識の啓発につながる取組"]
[null,null,null,null,null,null,"領域１②性別、性自認・性的指向、国籍・文化等の多様性を認め合う気運の醸成につながる取組"]
[null,null,null,null,null,null,"領域１③男女共同参画社会の実現につながる取組"]
[null,null,null,null,null,null,"領域１④ユニバーサルデザインの普及啓発・施策改善につながる取組"]
[null,null,null,null,null,null,"領域１⑤平和意識の啓発につながる取組"]
[null,null,null,null,null,"領域２","領域２①地域における人のつながりと愛着が生まれる環境づくりにつながる取組"]
[null,null,null,null,null,null,"領域２②地域コミュニティを支える人材・団体の支援の充実、地域の自主的な活動の推進と環境づくりにつながる取組"]
[null,null,null,null,null,null,"領域２③高齢者の地域の見守り・支えあいの推進、高齢者の相談支援につながる取組"]
[null,null,null,null,null,null,"領域２④高齢者を支える医療や介護・生活支援サービス等の提供体制の充実につながる取組"]
[null,null,null,null,null,null,"領域２⑤多様な交流・つながりを育み、いつまでも活躍できる環境づくりにつながる取組"]
[null,null,null,null,null,null,"領域２⑥区民が主体的に取り組む介護予防の推進につながる取組"]
[null,null,null,null,null,null,"領域２⑦権利擁護や虐待の防止の推進、再犯防止や立ち直りの支援など、多様な課題を抱えている人の支援など、誰一人取り残されることのない支援につながる取組"]
[null,null,null,null,null,null,"領域２⑧認知症のある人とその家族を支える環境づくりにつながる取組"]
[null,null,null,null,null,null,"領域２⑨地域における災害に強いまちづくりの推進、犯罪や事件の防止につながる取組"]
[null,null,null,null,null,"領域３","領域３①多文化共生のまちづくりの推進につながる取組"]
[null,null,null,null,null,null,"領域３②誰もが身近に気軽に親しめる文化芸術の環境づくりにつながる取組"]
[null,null,null,null,null,null,"領域３③歴史・伝統文化の保存・継承・活用につながる取組\""]
[null,null,null,null,null,null,"領域３④生涯にわたり学び続けることができる環境づくりにつながる取組"]
[null,null,null,null,null,null,"領域３⑤持続可能な地域経済の成長・活性化と働き続けられる環境づくりにつながる取組"]
[null,null,null,null,null,null,"領域３⑥商店街の活性化支援によるにぎわい空間の創出につながる取組"]
[null,null,null,null,null,null,"領域３⑦消費生活の相談や普及啓発など、消費生活の安全・安心の推進につながる取組"]
[null,null,null,null,null,"領域４","領域４①子どもの権利擁護の推進、子どもの権利に係る相談、子どもが意見を表明する機会の提供など、子どもの権利の尊重と理解促進につながる取組"]
[null,null,null,null,null,null,"領域４②子どもの貧困対策や生活環境の改善、困難を抱える子どもの学習の機会の確保、子どもの経験・体験の機会の確保などにつながる取組"]
[null,null,null,null,null,null,"領域４③児童虐待の未然防止、早期発見・早期対応につながる取組"]
[null,null,null,null,null,null,"領域４④特色ある学校づくりと家庭・地域との協働による学校運営の推進につながる取組"]
[null,null,null,null,null,null,"領域４⑤地域における子育て支援活動の促進につながる活動"]
[null,null,null,null,null,null,"領域４⑥妊娠から子育てにかかる切れ目ない相談支援体制の充実につながる活動"]
[null,null,null,null,null,null,"領域４⑦特別な配慮を必要とする子どもとその家庭への一貫した相談支援の充実につながる取組"]
[null,null,null,null,null,null,"領域４⑧若者が地域や社会で活躍できる環境づくりにつながる活動"]
[null,null,null,null,null,null,"領域４⑨社会との関わりに課題を抱える若者の相談支援の充実につながる取組"]
[null,null,null,null,null,"領域５","領域５①自殺の未然防止、犯罪被害者等を支える地域づくりなど、多様な課題を抱えている人やその家族の早期発見・早期対応の推進につながる取組"]
[null,null,null,null,null,null,"領域５②障害者への相談支援体制と地域生活移行を支える環境の整備につながる取組"]
[null,null,null,null,null,null,"領域５③生活に困窮している人の自立に向けた支援の充実につながる取組"]
[null,null,null,null,null,null,"領域５④障害者の就労や社会参画の推進につながる取組"]
[null,null,null,null,null,null,"領域５⑤健康的な生活習慣が身につく環境づくりにつながる取組"]
[null,null,null,null,null,null,"領域５⑥感染症予防に向けた意識の啓発、食の安全・安心の確保、動物との共生など、安全・安心な生活環境の確保につながる取組"]
[null,null,null,null,null,"領域６","領域６①誰もが生涯を通じて身近に運動・スポーツに取組む環境づくりにつながる取組"]
[null,null,null,null,null,null,"領域６②スポーツを通じたコミュニティの形成につながる取組"]
[null,null,null,null,null,null,"領域６③子どもの競技体験の機会の提供など、運動習慣の定着につながる取組"]
[null,null,null,null,null,null,"領域６④区内の各種スポーツ団体等の支援につながる取組"]
[null,null,null,null,null,"領域７","領域７①各地区の特性に応じたまちづくりの推進につながる取組"]
[null,null,null,null,null,null,"領域７②災害に強い、防災まちづくりの推進につながる取組"]
[null,null,null,null,null,null,"領域７③耐震化の推進につながる取組"]
[null,null,null,null,null,null,"領域７④住宅ストックの質の向上、適切な維持管理及び有効活用の推進につながる取組"]
[null,null,null,null,null,null,"領域７⑤まちなかの安全性・快適性の向上につながる取組"]
[null,null,null,null,null,null,"領域７⑥道路・橋梁の着実な整備・改修につながる取組"]
[null,null,null,null,null,null,"領域７⑦多様なニーズに応じた魅力ある公園の整備につながる取組"]
[null,null,null,null,null,null,"領域７⑧誰もが利用しやすく、円滑に移動できる交通環境の整備につながる取組"]
[null,null,null,null,null,"領域８","領域８①質の高いみどりの確保・創出、緑化の推進にむけた意識啓発、保護指定樹林等の所有者への支援などみどりの保全と創出の推進につながる取組"]
[null,null,null,null,null,null,"領域８②脱炭素社会の推進と気候変動への適応につながる取組"]
[null,null,null,null,null,null,"領域８③環境活動に関する連携・協働に向けたネットワークづくりにつながる取組"]
[null,null,null,null,null,null,"領域８④ごみの減量やリサイクルの推進につながる取組"]
[null,null,null,null,null,null,"領域８⑤食品ロス削減につながる取組"]
[null,null,null,null,null,null,"領域８⑥生活環境の維持のための対策など、安全・安心な生活環境の確保につながる取組"]
[null,null,null,null,null,"領域９","領域９① 地域資源を掘り起こし、気軽に楽しめるまちを区民や来街者に提案する取組"]
[null,null,null,null,null,null,"領域９② 「リラックス」「食・グルメ」「出会い・交流」など、体験を提供することでリピーターを獲得することに着目した取組"]
[null,null,null,null,null,null,"領域９③ デジタルツールの活用など、中野の魅力の拡散に向けて、高い情報発信力を伴う取組"]
[]
[]
[null,null,null,null,null,null,"○"]

{"sheet":"(記入例)Ⅲ　事業収支計画書","index":5,"n_rows":68,"n_cols":14,"rows_kept":68,"cut":false,"hidden":false,"merged":[[62,2,62,3],[63,2,63,3],[64,2,64,3],[65,2,65,3],[66,2,66,3],[61,2,61,3],[50,2,50,3],[51,2,51,3],[52,2,52,3],[53,2,53,3],[54,2,54,3],[55,2,55,3],[56,2,56,3],[57,2,57,3],[58,2,58,3],[59,2,59,3],[60,2,60,3],[49,2,49,3],[38,2,38,3],[39,2,39,3],[40,2,40,3],[41,2,41,3],[42,2,42,3],[43,2,43,3],[44,2,44,3],[45,2,45,3],[46,2,46,3],[47,2,47,3],[48,2,48,3],[37,2,37,3],[26,2,26,3],[27,2,27,3],[28,2,28,3],[29,2,29,3],[30,2,30,3],[31,2,31,3],[32,2,32,3],[33,2,33,3],[34,2,34,3],[35,2,35,3],[36,2,36,3],[17,2,17,3],[18,2,18,3],[19,2,19,3],[20,2,20,3],[21,2,21,3],[22,2,22,3],[11,4,11,5],[11,6,11,7],[12,0,12,1],[12,3,12,5],[12,6,12,7],[13,1,13,2],[13,3,13,7],[7,0,11,1],[7,2,10,2],[7,4,7,5],[7,6,7,7],[8,4,8,5],[8,6,8,7],[9,4,9,5],[9,6,9,7],[10,4,10,5],[10,6,10,7],[4,0,4,1],[4,3,11,3],[4,4,4,5],[4,6,4,7],[5,0,5,1],[5,4,5,5],[5,6,5,7],[6,0,6,1],[6,4,6,5],[6,6,6,7],[3,0,3,1],[3,3,3,5],[3,6,3,7],[1,0,1,2],[1,3,1,7],[2,0,2,1],[2,3,2,5],[2,6,2,7]]}
["Ⅲ　事業収支計画"]
["収入（申請金額手入力。他自動計算）",null,null,"支出（自動計算）"]
["項目",null,"金額（円）","項目",null,null,"金額（円）"]
["a.参加費",null,{"$f":"SUMIF($B$19:$B$23,A4,$H$19:$H$23)","v":13000},"※助成対象外経費",null,null,{"$f":"SUMIF($B$28:$B$67,D4,$H$28:$H$67)","v":0},null,null,null,null,null,"※助成対象外経費"]
["b.協賛金･寄付",null,{"$f":"SUMIF($B$19:$B$23,A5,$H$19:$H$23)","v":30000},"助成対象経費","①謝礼金（会員外）",null,{"$f":"SUMIF($B$28:$B$67,E5,$H$28:$H$67)","v":100000},null,null,null,null,null,"①謝礼金（会員外）"]
["c.運営資金",null,{"$f":"SUMIF($B$19:$B$23,A6,$H$19:$H$23)","v":22700},null,"②活動手当（会員）",null,50000,null,null,null,null,null,"②活動手当（会員）","←NEW"]
["d.民間助成金",null,{"$f":"SUMIF($B$19:$B$23,A7,$H$19:$H$23)","v":0},null,"③施設使用料",null,7500,null,null,null,null,null,"③施設使用料"]
["申請助成金額\n\n助成対象経費合計×2/3以内、かつ上限20万円、100円未満切捨）",null,"申請金額入力↓",null,"④保険料",null,7500,null,null,null,null,null,"④保険料"]
[null,null,null,null,"⑤印刷・製本費",null,26500,null,null,null,null,null,"⑤印刷・製本費"]
[null,null,null,null,"⑥消耗品費",null,5500,null,null,null,null,null,"⑥消耗品費"]
[null,null,null,null,"⑦その他経費",null,0,null,null,null,null,null,"⑦その他経費"]
[null,null,131300,null,"助成対象経費 合計",null,{"$f":"SUM(G5:G11)","v":197000}]
["収入合計",null,{"$f":"SUM(C4:C12)","v":197000},"支出合計",null,null,{"$f":"G4+G12","v":197000}]
["参考",{"$f":"IF(ROUNDDOWN(G12*2/3,0)<=200000,ROUNDDOWN(G12*2/3,-2),200000)","v":131300},null,"　　←助成金額の上限金額\n円　　（助成対象経費①＋②＋③＋④＋⑤＋⑥＋⑦×2/3、\n　　　　　上限20万円、100円未満切捨）",null,null,null,null,null,null,null,null,"a.参加費"]
[null,null,null,null,null,null,null,null,null,null,null,null,"b.協賛金･寄付"]
["＜収入内訳＞",null,"項目を選択、内容、数量、単位、単価を入力してください。",null,null,null,null,null,null,null,null,null,"c.運営資金"]
[null,null,"a～dの項目が該当するかは、手引きでご確認ください。",null,null,null,null,null,null,null,null,null,"d.民間助成金"]
["No．","項目（必ず選択）","内容",null,"数量","単位","単価","金額(円)",null,"　　"]
[1,"a.参加費","大人",null,40,"人",300,{"$f":"E19*G19","v":12000},null,"　　　"]
[2,"a.参加費","子ども",null,10,"人",100,{"$f":"E20*G20","v":1000}]
[3,"b.協賛金･寄付","〇〇町会協賛",null,1,"式",30000,{"$f":"E21*G21","v":30000}]
[4,"c.運営資金","自己資金",null,1,"式",22700,{"$f":"E22*G22","v":22700}]
[5,null,null,null,null,null,null,{"$f":"E23*G23","v":0}]
[null,null,null,null,null,null,"合計",{"$f":"SUM(H19:H23)","v":65700}]
["＜支出内訳＞",null,"項目を選択、内容、数量、単位、単価を入力してください。"]
[null,null,"①～⑦の項目が該当するかは、手引きでご確認ください。"]
["No．","項目（必ず選択）","内容",null,"数量","単位","単価","金額"]
[1,"①謝礼金（会員外）","講師謝礼（医師＠5000×2h×2人）",null,5,"回",20000,{"$f":"E28*G28","v":100000}]
[2,"②活動手当（会員）","活動経費（区内＠1000×10人）",null,5,"回",10000,50000]
[3,"③施設使用料","〇〇区活使用料＠1500",null,5,"回",1500,7500]
[4,"④保険料","イベント保険＠30×50人",null,5,"回",1500,7500]
[5,"⑤印刷・製本費","チラシ印刷費＠10×500枚",null,5,"回",5000,25000]
[6,"⑤印刷・製本費","講演資料＠30×10枚",null,5,"回",300,1500]
[7,"⑥消耗品費","コピー用紙",null,1,"式",500,500]
[8,"⑥消耗品費","文房具",null,1,"式",5000,5000]
[9,null,null,null,null,null,null,0]
[10,null,null,null,null,null,null,0]
[11,null,null,null,null,null,null,0]
[12,null,null,null,null,null,null,0]
[13,null,null,null,null,null,null,0]
[14,null,null,null,null,null,null,0]
[15,null,null,null,null,null,null,0]
[16,null,null,null,null,null,null,0]
[17,null,null,null,null,null,null,0]
[18,null,null,null,null,null,null,0]
[19,null,null,null,null,null,null,0]
[20,null,null,null,null,null,null,0]
[21,null,null,null,null,null,null,0]
[22,null,null,null,null,null,null,0]
[23,null,null,null,null,null,null,0]
[24,null,null,null,null,null,null,0]
[25,null,null,null,null,null,null,0]
[26,null,null,null,null,null,null,0]
[27,null,null,null,null,null,null,0]
[28,null,null,null,null,null,null,0]
[29,null,null,null,null,null,null,0]
[30,null,null,null,null,null,null,0]
[31,null,null,null,null,null,null,0]
[32,null,null,null,null,null,null,0]
[33,null,null,null,null,null,null,0]
[34,null,null,null,null,null,null,0]
[35,null,null,null,null,null,null,0]
[36,null,null,null,null,null,null,0]
[37,null,null,null,null,null,null,0]
[38,null,null,null,null,null,null,0]
[39,null,null,null,null,null,null,0]
[40,null,null,null,null,null,null,0]
[null,null,null,null,null,null,"合計",{"$f":"SUM(H28:H67)","v":197000}]

{"sheet":"Ⅱ事業概要 手書き用原本","index":6,"n_rows":199,"n_cols":7,"rows_kept":199,"cut":false,"hidden":true,"merged":[[0,1,0,3],[55,0,55,3],[25,0,29,0],[30,0,34,0],[53,0,54,0],[70,0,73,0],[74,0,76,0],[3,0,17,0],[40,0,52,0],[63,0,69,0]]}
["Ⅱ 事業概要"]
["1 事業名（自由記述）"]
["2 領域・合致する政策（選択）"]
["3 事業形態\n（複数選択可）",null,"シンポジウム"]
[null,null,"交流会・ひろば・サロン"]
[null,null,"まつり\n・フェス"]
[null,null,"講演・コンサート"]
[null,null,"周知・普及啓発"]
[null,null,"保全・整備"]
[null,null,"講義･講習会･学習会"]
[null,null,"コンテスト"]
[null,null,"国際交流"]
[null,null,"体験・街歩き"]
[null,null,"催事・バザー"]
[null,null,"防災関連"]
[null,null,"健康増進・スポーツ"]
[null,null,"その他（下段に記述）"]
[]
["4 対象（誰に対して）\n※自由記述"]
["5 目的（何のために）\n※自由記述"]
["6 事業内容（何をする）\n※自由記述"]
["7 実施会場名（全て入力）\n※自由記述"]
["8 準備開始日(年月日)"]
["9 実施予定日(月日)"]
["10 最終実施予定日(月日)"]
["11 開催回数（選択）",null,"1回"]
[null,null,"2～11回"]
[null,null,"12回～24回"]
[null,null,"24回以上（下段に回数を記述）"]
[null,null,null,"回"]
["12 事業の目標参加者数(延べ人数を選択)",null,"30人未満"]
[null,null,"30～50人未満"]
[null,null,"50～100人未満"]
[null,null,"100人～1000人未満"]
[null,null,"1000人以上"]
["13 この事業に関わる\n　 会員スタッフ(人)",null,null,"名"]
["14 会員外ボランティア",null,null,"名"]
["15 会員外講師等専門家",null,null,"名"]
["16 過去のこの事業の開催回数(初は０と入力)　　　　　　　　",null,null,"回"]
["17 この事業の開始年月日(初は2023年4月1日と入力)"]
["18 PR方法等\n（複数選択可）","■","ためまっぷなかの（必須）"]
[null,null,"Twitter"]
[null,null,"Facebook"]
[null,null,"Instagram"]
[null,null,"LINE"]
[null,null,"YouTube配信"]
[null,null,"TikTok"]
[null,null,"チラシ区有施設へのチラシ設置"]
[null,null,"掲示板へのチラシ掲示"]
[null,null,"手配り"]
[null,null,"郵送"]
[null,null,"その他（下段に入力）"]
[]
["19 地域団体連携（選択）",null,"広報,場所,ﾎﾞﾗﾝﾃｨｱ,資金,物資提供で連携して「いない」"]
[null,null,"広報,場所,ﾎﾞﾗﾝﾃｨｱ,資金,物資提供で連携して「いる」"]
["　※連携している場合のみ20～22に記述。連携団体が2種類ある場合は23～25に記述。\n　　3種類以上ある場合は、26 その他に、連携団体種別・団体名・連携内容を全て記述。"]
["20 連携団体種別(選択)"]
["21 連携団体、地区名（全て入力。自由記述）"]
["22 連携内容（選択）"]
["23 連携団体種別(選択)"]
["24 連携団体、地区名（全て入力。自由記述）"]
["25 連携内容（選択）"]
["26 その他（右欄に団体名、連携内容を自由記述）"]
["27 ユニバーサルデザインへの配慮（あてはまるものすべてにチェック）",null,"①事業計画において、多様な生き方、個性や価値観に配慮している。"]
[null,null,"②対象となる方が参加しやすい時期、曜日、時間帯に設定している。"]
[null,null,"③文字の大きさや配色に留意した広報物を作成する。"]
[null,null,"④配慮が必要な人の事前の把握や、事業当日でも柔軟な対応ができるなど必要な体制ができている。"]
[null,null,"⑤会場内外の案内は分かりやすく、安全でスムーズな導線が確保できる。"]
[null,null,"⑥その他（下段に具体的に、全ての配慮を記述）"]
[]
["28 この事業での他の助成金の申請について",null,"この事業では、政策助成の申請のみ（他の助成金は無し）"]
[null,null,"この事業で、国(独立行政法人含む)、都、区、社会福祉協議会等の助成金利用する（注意:この場合は政策助成の申請ができません。他の事業で利用していても申請できます)"]
[null,null,"この事業で民間の助成金を申請する（助成金名を下段に記述）"]
[]
["29 団体で、この申請事業以外に、本年度区に助成金申請を行う、又は今後申請予定事業の有無",null,"他に申請する事業なし(この事業のみ助成金を申請)"]
[null,null,"他の事業で申請あり(助成金名と申請事業名を下段に記述)"]
[]
[]
[]
[]
[]
[]
[]
[]
[]
[]
[]
[]
[]
[]
[null,null,null,null,null,null,"町会・自治会"]
[null,null,null,null,null,null,"区民活動センター運営委員会"]
[null,null,null,null,null,null,"民生児童委員"]
[null,null,null,null,null,null,"青少年育成地区委員会"]
[null,null,null,null,null,null,"老人クラブ"]
[]
[]
[]
[]
[null,null,null,null,null,null,"①地域における人のつながりと愛着が生まれる環境づくりにつながる取組"]
[null,null,null,null,null,null,"②地域コミュニティを支える人材・団体の支援の充実、地域の自主的な活動の推進と環境づくりにつながる取組"]
[null,null,null,null,null,null,"③高齢者の地域の見守り・支えあいの推進、高齢者の相談支援につながる取組"]
[null,null,null,null,null,null,"④高齢者を支える医療や介護・生活支援サービス等の提供体制の充実につながる取組"]
[null,null,null,null,null,null,"⑤多様な交流・つながりを育み、いつまでも活躍できる環境づくりにつながる取組"]
[null,null,null,null,null,null,"⑥区民が主体的に取り組む介護予防の推進につながる取組"]
[null,null,null,null,null,null,"⑦権利擁護や虐待の防止の推進、再犯防止や立ち直りの支援など、多様な課題を抱えている人の支援など、誰一人取り残されることのない支援につながる取組"]
[null,null,null,null,null,null,"⑧認知症のある人とその家族を支える環境づくりにつながる取組"]
[null,null,null,null,null,null,"⑨地域における災害に強いまちづくりの推進、犯罪や事件の防止につながる取組"]
[]
[]
[null,null,null,null,null,null,"1.広報"]
[null,null,null,null,null,null,"2.場所"]
[null,null,null,null,null,null,"3.ボランティア"]
[null,null,null,null,null,null,"4.資金"]
[null,null,null,null,null,null,"5.物資提供"]
[null,null,null,null,null,null,"6.広報、場所"]
[null,null,null,null,null,null,"7.広報、ボランティア"]
[null,null,null,null,null,null,"8.広報、資金"]
[null,null,null,null,null,null,"9.広報、物資提供"]
[null,null,null,null,null,null,"10. 場所、ボランティア"]
[null,null,null,null,null,null,"11. 場所、資金"]
[null,null,null,null,null,null,"12. 場所、物資提供"]
[null,null,null,null,null,null,"13. ボランティア、資金"]
[null,null,null,null,null,null,"14. ボランティア、物資提供"]
[null,null,null,null,null,null,"15. 資金、物資提供"]
[null,null,null,null,null,null,"16. 広報、場所、ボランティア"]
[null,null,null,null,null,null,"17. 広報、場所、資金"]
[null,null,null,null,null,null,"18. 広報、場所、物資提供"]
[null,null,null,null,null,null,"19. 広報、ボランティア、資金"]
[null,null,null,null,null,null,"20. 広報、ボランティア、物資提供"]
[null,null,null,null,null,null,"21. 広報、資金、物資提供"]
[null,null,null,null,null,null,"22. 場所、ボランティア、資金"]
[null,null,null,null,null,null,"23. 場所、ボランティア、物資提供"]
[null,null,null,null,null,null,"24. 場所、資金、物資提供"]
[null,null,null,null,null,null,"25. ボランティア、資金、物資提供"]
[null,null,null,null,null,null,"26. 広報、場所、ボランティア、資金"]
[null,null,null,null,null,null,"27. 広報、場所、ボランティア、物資、提供"]
[null,null,null,null,null,null,"28. 広報、場所、資金、物資提供"]
[null,null,null,null,null,null,"29. 広報、ボランティア、資金、物資提供"]
[null,null,null,null,null,null,"30. 場所、ボランティア、資金、物資提供"]
[null,null,null,null,null,null,"31. 広報、場所、ボランティア、資金、物資提供"]
[]
[null,null,null,null,null,"領域１","領域１①人権意識の啓発につながる取組"]
[null,null,null,null,null,null,"領域１②性別、性自認・性的指向、国籍・文化等の多様性を認め合う気運の醸成につながる取組"]
[null,null,null,null,null,null,"領域１③男女共同参画社会の実現につながる取組"]
[null,null,null,null,null,null,"領域１④ユニバーサルデザインの普及啓発・施策改善につながる取組"]
[null,null,null,null,null,null,"領域１⑤平和意識の啓発につながる取組"]
[null,null,null,null,null,"領域２","領域２①地域における人のつながりと愛着が生まれる環境づくりにつながる取組"]
[null,null,null,null,null,null,"領域２②地域コミュニティを支える人材・団体の支援の充実、地域の自主的な活動の推進と環境づくりにつながる取組"]
[null,null,null,null,null,null,"領域２③高齢者の地域の見守り・支えあいの推進、高齢者の相談支援につながる取組"]
[null,null,null,null,null,null,"領域２④高齢者を支える医療や介護・生活支援サービス等の提供体制の充実につながる取組"]
[null,null,null,null,null,null,"領域２⑤多様な交流・つながりを育み、いつまでも活躍できる環境づくりにつながる取組"]
[null,null,null,null,null,null,"領域２⑥区民が主体的に取り組む介護予防の推進につながる取組"]
[null,null,null,null,null,null,"領域２⑦権利擁護や虐待の防止の推進、再犯防止や立ち直りの支援など、多様な課題を抱えている人の支援など、誰一人取り残されることのない支援につながる取組"]
[null,null,null,null,null,null,"領域２⑧認知症のある人とその家族を支える環境づくりにつながる取組"]
[null,null,null,null,null,null,"領域２⑨地域における災害に強いまちづくりの推進、犯罪や事件の防止につながる取組"]
[null,null,null,null,null,"領域３","領域３①多文化共生のまちづくりの推進につながる取組"]
[null,null,null,null,null,null,"領域３②誰もが身近に気軽に親しめる文化芸術の環境づくりにつながる取組"]
[null,null,null,null,null,null,"領域３③歴史・伝統文化の保存・継承・活用につながる取組\""]
[null,null,null,null,null,null,"領域３④魅力的な地域資源の発掘・発信、地域のイベントの創出などにつながる取組"]
[null,null,null,null,null,null,"領域３⑤生涯にわたり学び続けることができる環境づくりにつながる取組"]
[null,null,null,null,null,null,"領域３⑥持続可能な地域経済の成長・活性化と働き続けられる環境づくりにつながる取組"]
[null,null,null,null,null,null,"領域３⑦商店街の活性化支援によるにぎわい空間の創出につながる取組"]
[null,null,null,null,null,null,"領域３⑧消費生活の相談や普及啓発など、消費生活の安全・安心の推進につながる取組"]
[null,null,null,null,null,"領域４","領域４①子どもの権利擁護の推進、子どもの権利に係る相談、子どもが意見を表明する機会の提供など、子どもの権利の尊重と理解促進につながる取組"]
[null,null,null,null,null,null,"領域４②子どもの貧困対策や生活環境の改善、困難を抱える子どもの学習の機会の確保、子どもの経験・体験の機会の確保などにつながる取組"]
[null,null,null,null,null,null,"領域４③児童虐待の未然防止、早期発見・早期対応につながる取組"]
[null,null,null,null,null,null,"領域４④特色ある学校づくりと家庭・地域との協働による学校運営の推進につながる取組"]
[null,null,null,null,null,null,"領域４⑤地域における子育て支援活動の促進につながる活動"]
[null,null,null,null,null,null,"領域４⑥妊娠から子育てにかかる切れ目ない相談支援体制の充実につながる活動"]
[null,null,null,null,null,null,"領域４⑦特別な配慮を必要とする子どもとその家庭への一貫した相談支援の充実につながる取組"]
[null,null,null,null,null,null,"領域４⑧子育て世帯が暮らしやすい住宅・住環境の誘導につながる取組"]
[null,null,null,null,null,null,"領域４⑨若者が地域や社会で活躍できる環境づくりにつながる活動"]
[null,null,null,null,null,null,"領域４⑩社会との関わりに課題を抱える若者の相談支援の充実につながる取組"]
[null,null,null,null,null,null,"領域４⑪子どもや若者が生涯にわたり学び続けることができる環境づくりにつながる活動"]
[null,null,null,null,null,null,"領域５①自殺の未然防止、犯罪被害者等を支える地域づくりなど、多様な課題を抱えている人やその家族の早期発見・早期対応の推進につながる取組"]
[null,null,null,null,null,null,"領域５②障害者への相談支援体制と地域生活移行を支える環境の整備につながる取組"]
[null,null,null,null,null,null,"領域５③生活に困窮している人の自立に向けた支援の充実につながる取組"]
[null,null,null,null,null,null,"領域５④障害者の就労や社会参画の推進につながる取組"]
[null,null,null,null,null,null,"領域５⑤健康的な生活習慣が身につく環境づくりにつながる取組"]
[null,null,null,null,null,null,"領域５⑥感染症予防に向けた意識の啓発、食の安全・安心の確保、動物との共生など、安全・安心な生活環境の確保につながる取組"]
[null,null,null,null,null,"領域６","領域６①誰もが生涯を通じて身近に運動・スポーツに取組む環境づくりにつながる取組"]
[null,null,null,null,null,null,"領域６②スポーツを通じたコミュニティの形成につながる取組"]
[null,null,null,null,null,null,"領域６③子どもの競技体験の機会の提供など、運動習慣の定着につながる取組"]
[null,null,null,null,null,null,"領域６④区内の各種スポーツ団体等の支援につながる取組"]
[null,null,null,null,null,"領域７","領域７①区民による主体的なまちづくりなど、各地区の特性に応じたまちづくりの推進につながる取組"]
[null,null,null,null,null,null,"領域７②災害に強い、防災まちづくりの推進につながる取組"]
[null,null,null,null,null,null,"領域７③耐震化の推進につながる取組"]
[null,null,null,null,null,null,"領域７④住宅ストックの質の向上、適切な維持管理及び有効活用の推進につながる取組"]
[null,null,null,null,null,null,"領域７⑤まちなかの安全性・快適性の向上につながる取組"]
[null,null,null,null,null,null,"領域７⑥道路・橋梁の着実な整備・改修につながる取組"]
[null,null,null,null,null,null,"領域７⑦多様なニーズに応じた魅力ある公園の整備につながる取組"]
[null,null,null,null,null,null,"領域７⑧放置自転車対策など、誰もが利用しやすく、円滑に移動できる交通環境の整備につながる取組"]
[null,null,null,null,null,"領域８","領域８①質の高いみどりの確保・創出、緑化の推進にむけた意識啓発、保護指定樹林等の所有者への支援などみどりの保全と創出の推進につながる取組"]
[null,null,null,null,null,null,"領域８②脱炭素社会の推進と気候変動への適応につながる取組"]
[null,null,null,null,null,null,"領域８③環境に関する連携・協働に向けたネットワークづくりにつながる取組"]
[null,null,null,null,null,null,"領域８④ごみの減量やリサイクルの推進につながる取組"]
[null,null,null,null,null,null,"領域８⑤食品ロス削減につながる取組"]
[null,null,null,null,null,null,"領域８⑥生活環境の維持のための対策など、安全・安心な生活環境の確保につながる取組"]

{"sheet":"区使用シート（入力不要）","index":7,"n_rows":4,"n_cols":13,"rows_kept":4,"cut":false,"hidden":true,"merged":[]}
[]
["区使用欄（団体は入力不要）"]
["申請番号","申請書\n受理日","新規/再申請","申　請　団　体　名\n※ＮＰＯ法人の場合は頭にその旨記入","肩書き","代表者名","申　請　事　業　名\n※サブタイトルがある場合はそれも記入","申　請　金　額","連絡担当者名","メールアドレス","郵便番号","連絡担当者の住所または通知類の送付先(区・町名・番地)","最寄りの区民活動センター"]
[1,null,null,{"$f":"'第1号様式　Ⅰ団体概要'!D11","v":0},{"$f":"'第1号様式　Ⅰ団体概要'!D14","v":0},{"$f":"'第1号様式　Ⅰ団体概要'!D12","v":0},{"$f":"'Ⅱ事業概要 '!C2","v":0},{"$f":"'Ⅲ　事業収支計画書'!C12","v":0},{"$f":"'第1号様式　Ⅰ団体概要'!D18","v":0},{"$f":"'第1号様式　Ⅰ団体概要'!D23","v":0},{"$f":"'第1号様式　Ⅰ団体概要'!D20","v":0},{"$f":"'第1号様式　Ⅰ団体概要'!D21","v":0},{"$f":"'第1号様式　Ⅰ団体概要'!D35","v":0}]